[Event "MCR rapid mládeže 2023 U16"]
[Site "Harachov, Czech Republic"]
[Date "2023.09.09"]
[Round "5.41"]
[White "Zidkova, Agnes"]
[Black "Tarielasvili, Kira"]
[Result "1-0"]
[TimeControl "20min+5s/move"]
[WhiteElo "1045"]
[BlackElo "1228"]

1. e4 {[%clk 00:20:08]} {[%emt 00:00:01]} e5 {[%clk 00:20:08]} {[%emt
00:00:02]} 2. d4 {[%clk 00:20:12]} {[%emt 00:00:02]} f6 {[%clk 00:20:09]}
{[%emt 00:00:04]} 3. dxe5 {[%clk 00:20:11]} {[%emt 00:00:06]} fxe5 {[%clk
00:20:12]} {[%emt 00:00:02]} 4. Nf3 {[%clk 00:19:50]} {[%emt 00:00:26]} Nc6
{[%clk 00:20:01]} {[%emt 00:00:15]} 5. Nc3 {[%clk 00:19:39]} {[%emt 00:00:15]}
Nf6 {[%clk 00:19:58]} {[%emt 00:00:08]} 6. Bc4 {[%clk 00:19:39]} {[%emt
00:00:07]} Bc5 {[%clk 00:19:51]} {[%emt 00:00:11]} 7. O-O {[%clk 00:19:30]}
{[%emt 00:00:13]} d6 {[%clk 00:19:20]} {[%emt 00:00:37]} 8. a3 {[%clk
00:18:56]} {[%emt 00:00:40]} Bg4 {[%clk 00:19:15]} {[%emt 00:00:04]} 9. h3
{[%clk 00:18:12]} {[%emt 00:00:54]} Bh5 {[%clk 00:19:01]} {[%emt 00:00:15]} 10.
b4 {[%clk 00:18:05]} {[%emt 00:00:17]} Bd4 {[%clk 00:18:53]} {[%emt 00:00:12]}
11. Qd3 {[%clk 00:17:23]} {[%emt 00:00:46]} Bxf3 {[%clk 00:17:14]} {[%emt
00:01:45]} 12. Qxf3 {[%clk 00:17:13]} {[%emt 00:00:13]} Qe7 {[%clk 00:17:00]}
{[%emt 00:00:18]} 13. Bb2 {[%clk 00:16:01]} {[%emt 00:01:21]} O-O-O {[%clk
00:15:41]} {[%emt 00:01:24]} 14. Nd1 {[%clk 00:14:47]} {[%emt 00:01:19]} Bxb2
{[%clk 00:15:21]} {[%emt 00:00:24]} 15. Nxb2 {[%clk 00:14:48]} {[%emt
00:00:04]} Rhf8 {[%clk 00:14:50]} {[%emt 00:00:34]} 16. Rad1 {[%clk 00:13:30]}
{[%emt 00:01:25]} Nd7 {[%clk 00:14:33]} {[%emt 00:00:22]} 17. Qd3 {[%clk
00:12:47]} {[%emt 00:00:45]} Nb6 {[%clk 00:13:27]} {[%emt 00:01:14]} 18. Bd5
{[%clk 00:12:00]} {[%emt 00:00:52]} Nxd5 {[%clk 00:12:01]} {[%emt 00:01:32]} 19.
Qxd5 {[%clk 00:11:37]} {[%emt 00:00:27]} Nd4 {[%clk 00:10:36]} {[%emt
00:01:29]} 20. c3 {[%clk 00:10:14]} {[%emt 00:01:30]} Nc6 {[%clk 00:10:07]}
{[%emt 00:00:34]} 21. Rfe1 {[%clk 00:08:57]} {[%emt 00:01:23]} Qf6 {[%clk
00:09:08]} {[%emt 00:00:58]} 22. f3 {[%clk 00:08:46]} {[%emt 00:00:21]} Rde8
{[%clk 00:07:26]} {[%emt 00:01:47]} 23. Nc4 {[%clk 00:07:31]} {[%emt 00:01:21]}
Re6 {[%clk 00:06:45]} {[%emt 00:00:44]} 24. Re2 {[%clk 00:06:28]} {[%emt
00:01:09]} Qg6 {[%clk 00:05:38]} {[%emt 00:01:11]} 25. b5 {[%clk 00:04:59]}
{[%emt 00:01:35]} Nd8 {[%clk 00:05:09]} {[%emt 00:00:34]} 26. Na5 {[%clk
00:03:15]} {[%emt 00:01:49]} b6 {[%clk 00:04:08]} {[%emt 00:01:06]} 27. Nb3
{[%clk 00:02:52]} {[%emt 00:00:29]} h5 {[%clk 00:02:23]} {[%emt 00:01:48]} 28.
Qc4 {[%clk 00:02:20]} {[%emt 00:00:39]} Nb7 {[%clk 00:01:35]} {[%emt 00:00:52]}
29. Red2 {[%clk 00:01:27]} {[%emt 00:00:58]} Rd8 {[%clk 00:01:35]} {[%emt
00:00:05]} 30. Rd5 {[%clk 00:01:10]} {[%emt 00:00:21]} Qg5 {[%clk 00:01:16]}
{[%emt 00:00:23]} 31. Kf2 {[%clk 00:00:52]} {[%emt 00:00:25]} Rg6 {[%clk
00:00:56]} {[%emt 00:00:25]} 32. Qf1 {[%clk 00:00:19]} {[%emt 00:00:36]} Qg3+
{[%clk 00:00:57]} {[%emt 00:00:04]} 33. Kg1 {[%clk 00:00:19]} {[%emt 00:00:05]}
Kb8 {[%clk 00:00:36]} {[%emt 00:00:29]} 34. Qf2 {[%clk 00:00:22]} {[%emt
00:00:02]} Qxf2+ {[%clk 00:00:39]} {[%emt 00:00:02]} 35. Kxf2 {[%clk 00:00:26]}
{[%emt 00:00:01]} Rf6 {[%clk 00:00:36]} {[%emt 00:00:07]} 36. R1d3 {[%clk
00:00:21]} {[%emt 00:00:11]} g5 {[%clk 00:00:38]} {[%emt 00:00:02]} 37. g3
{[%clk 00:00:22]} {[%emt 00:00:04]} g4 {[%clk 00:00:31]} {[%emt 00:00:12]} 38.
hxg4 {[%clk 00:00:22]} {[%emt 00:00:06]} hxg4 {[%clk 00:00:35]} {[%emt
00:00:01]} 39. Nd2 {[%clk 00:00:18]} {[%emt 00:00:09]} Rdf8 {[%clk 00:00:35]}
{[%emt 00:00:05]} 40. Ke2 {[%clk 00:00:10]} {[%emt 00:00:13]} gxf3+ {[%clk
00:00:30]} {[%emt 00:00:09]} 41. Nxf3 {[%clk 00:00:12]} {[%emt 00:00:03]} Rg8
{[%clk 00:00:25]} {[%emt 00:00:08]} 42. Kf2 {[%clk 00:00:16]} {[%emt 00:00:03]}
Kc8 {[%clk 00:00:26]} {[%emt 00:00:04]} 43. Kg2 {[%clk 00:00:18]} {[%emt
00:00:03]} Kd7 {[%clk 00:00:26]} {[%emt 00:00:02]} 44. Kf2 {[%clk 00:00:20]}
{[%emt 00:00:05]} Ke6 {[%clk 00:00:29]} {[%emt 00:00:02]} 45. Kg2 {[%clk
00:00:15]} {[%emt 00:00:10]} Kf7 {[%clk 00:00:31]} {[%emt 00:00:03]} 46. Rd1
{[%clk 00:00:15]} {[%emt 00:00:06]} Ke7 {[%clk 00:00:20]} {[%emt 00:00:14]} 47.
Rh1 {[%clk 00:00:19]} {[%emt 00:00:03]} Rfg6 {[%clk 00:00:19]} {[%emt
00:00:04]} 48. Rh7+ {[%clk 00:00:21]} {[%emt 00:00:04]} R8g7 {[%clk 00:00:23]}
{[%emt 00:00:01]} 49. Rxg7+ {[%clk 00:00:20]} {[%emt 00:00:06]} Rxg7 {[%clk
00:00:27]} {[%emt 00:00:02]} 50. Kh3 {[%clk 00:00:20]} {[%emt 00:00:04]} Rh7+
{[%clk 00:00:30]} {[%emt 00:00:02]} 51. Kg4 {[%clk 00:00:20]} {[%emt 00:00:05]}
Rg7+ {[%clk 00:00:33]} {[%emt 00:00:01]} 52. Ng5 {[%clk 00:00:20]} {[%emt
00:00:05]} Kf6 {[%clk 00:00:35]} {[%emt 00:00:03]} 53. Rd3 {[%clk 00:00:10]}
{[%emt 00:00:15]} Rxg5+ {[%clk 00:00:38]} {[%emt 00:00:02]} 54. Kh4 {[%clk
00:00:13]} {[%emt 00:00:02]} Rg8 {[%clk 00:00:34]} {[%emt 00:00:04]} 55. Rf3+
{[%clk 00:00:17]} {[%emt 00:00:07]} Ke6 {[%clk 00:00:37]} 56. g4 {[%clk
00:00:20]} {[%emt 00:00:04]} Rh8+ {[%clk 00:00:40]} 57. Kg3 {[%clk 00:00:23]}
{[%emt 00:00:02]} Nc5 {[%clk 00:00:41]} {[%emt 00:00:03]} 58. g5 {[%clk
00:00:26]} {[%emt 00:00:03]} Rg8 {[%clk 00:00:41]} {[%emt 00:00:05]} 59. Rf6+
{[%clk 00:00:28]} {[%emt 00:00:03]} Ke7 {[%clk 00:00:43]} {[%emt 00:00:02]} 60.
Kg4 {[%clk 00:00:29]} {[%emt 00:00:05]} Nd7 {[%clk 00:00:45]} {[%emt 00:00:02]}
61. Rh6 {[%clk 00:00:15]} {[%emt 00:00:20]} Kf7 {[%clk 00:00:41]} {[%emt
00:00:07]} 62. Rh7+ {[%clk 00:00:17]} {[%emt 00:00:06]} Ke8 {[%clk 00:00:38]}
{[%emt 00:00:06]} 63. g6 {[%clk 00:00:21]} {[%emt 00:00:03]} Rxg6+ {[%clk
00:00:40]} {[%emt 00:00:03]} 64. Kf5 {[%clk 00:00:23]} {[%emt 00:00:02]} Rf6+
{[%clk 00:00:42]} {[%emt 00:00:03]} 65. Kg5 {[%clk 00:00:20]} {[%emt 00:00:08]}
Rf1 {[%clk 00:00:40]} {[%emt 00:00:07]} 66. Kg6 {[%clk 00:00:16]} Rg1+ {[%clk
00:00:40]} 67. Kf5 {[%clk 00:00:17]} {[%emt 00:01:02]} Rf1+ {[%clk 00:01:45]}
{[%emt 00:00:02]} 68. Kg5 {[%clk 00:00:20]} {[%emt 00:00:02]} Kf8 {[%clk
00:01:34]} {[%emt 00:00:16]} 69. Rxd7 {[%clk 00:00:18]} {[%emt 00:00:07]} Rg1+
{[%clk 00:01:37]} {[%emt 00:00:02]} 70. Kf6 {[%clk 00:00:19]} {[%emt 00:00:03]}
Rf1+ {[%clk 00:01:40]} {[%emt 00:00:03]} 71. Ke6 {[%clk 00:00:22]} {[%emt
00:00:02]} c5 {[%clk 00:01:32]} {[%emt 00:00:13]} 72. bxc6 {[%clk 00:00:22]}
{[%emt 00:00:04]} Rc1 {[%clk 00:01:23]} {[%emt 00:00:14]} 73. c7 {[%clk
00:00:21]} {[%emt 00:00:07]} Rxc3 {[%clk 00:01:18]} {[%emt 00:00:09]} 74. Kf6
{[%clk 00:00:21]} {[%emt 00:00:05]} Rf3+ {[%clk 00:01:18]} {[%emt 00:00:05]} 75.
Ke6 {[%clk 00:00:23]} {[%emt 00:00:04]} Rc3 {[%clk 00:01:07]} {[%emt 00:00:07]}
76. Rf7+ {[%clk 00:00:20]} {[%emt 00:00:16]} Kg8 {[%clk 00:01:09]} {[%emt
00:00:03]} 77. Kf6 {[%clk 00:00:11]} {[%emt 00:00:13]} Rf3+ {[%emt 00:00:07]}
78. Ke6 {[%clk 00:00:09]} {[%emt 00:00:02]} Rc3 {[%clk 00:01:09]} {[%emt
00:00:09]} 79. Kf6 {[%clk 00:00:10]} {[%emt 00:00:04]} Rf3+ {[%clk 00:00:53]}
{[%emt 00:00:20]} 80. Ke6 {[%clk 00:00:09]} {[%emt 00:00:06]} Rxf7 {[%emt
00:00:06]} 81. c8=Q+ {[%clk 00:00:10]} {[%emt 00:00:01]} Kg7 {[%clk 00:00:57]}
{[%emt 00:00:03]} 82. Qc2 {[%clk 00:00:08]} {[%emt 00:00:08]} Rf6+ {[%clk
00:00:56]} {[%emt 00:00:06]} 83. Kd5 {[%clk 00:00:11]} {[%emt 00:00:02]} b5
{[%clk 00:00:49]} {[%emt 00:00:11]} 84. Qg2+ {[%clk 00:00:14]} {[%emt
00:00:02]} Kf7 {[%clk 00:00:54]} {[%emt 00:00:01]} 85. Qg4 {[%clk 00:00:14]}
{[%emt 00:00:05]} a5 {[%clk 00:00:56]} {[%emt 00:00:03]} 86. Qd7+ {[%clk
00:00:16]} {[%emt 00:00:03]} Kg6 {[%clk 00:01:00]} {[%emt 00:00:02]} 87. Qxb5
{[%clk 00:00:15]} {[%emt 00:00:06]} a4 {[%clk 00:00:59]} {[%emt 00:00:05]} 88.
Qxa4 {[%clk 00:00:17]} {[%emt 00:00:03]} Kg5 {[%clk 00:00:53]} {[%emt
00:00:09]} 89. Qd7 {[%clk 00:00:16]} {[%emt 00:00:08]} Kg6 {[%clk 00:00:50]}
{[%emt 00:00:08]} 90. a4 {[%clk 00:00:14]} {[%emt 00:00:08]} Rf2 {[%clk
00:00:44]} {[%emt 00:00:09]} 91. a5 {[%clk 00:00:16]} {[%emt 00:00:04]} Ra2
{[%clk 00:00:43]} {[%emt 00:00:02]} 92. Qxd6+ {[%clk 00:00:19]} {[%emt
00:00:06]} Kg5 {[%clk 00:00:46]} {[%emt 00:00:01]} 93. a6 {[%clk 00:00:23]}
{[%emt 00:00:02]} Rd2+ {[%clk 00:00:47]} {[%emt 00:00:05]} 94. Kxe5 {[%clk
00:00:23]} {[%emt 00:00:05]} Rxd6 {[%clk 00:00:48]} {[%emt 00:00:03]} 95. Kxd6
{[%clk 00:00:27]} {[%emt 00:00:01]} Kf4 {[%clk 00:00:52]} {[%emt 00:00:01]} 96.
a7 {[%clk 00:00:30]} {[%emt 00:00:02]} Kxe4 {[%clk 00:00:55]} {[%emt 00:00:01]}
97. a8=Q+ {[%clk 00:00:34]} {[%emt 00:00:02]} Ke3 {[%clk 00:00:58]} {[%emt
00:00:02]} 98. Qa4 {[%clk 00:00:34]} {[%emt 00:00:05]} Kd3 {[%clk 00:01:00]}
{[%emt 00:00:02]} 99. Kd5 {[%clk 00:00:38]} {[%emt 00:00:02]} Ke3 {[%clk
00:01:03]} 100. Qe4+ {[%clk 00:00:42]} {[%emt 00:00:03]} Kd2 {[%clk 00:01:05]}
{[%emt 00:00:02]} 101. Qf3 {[%clk 00:00:45]} {[%emt 00:00:03]} Kc2 {[%clk
00:01:04]} {[%emt 00:00:05]} 102. Kc4 {[%clk 00:00:49]} {[%emt 00:00:02]} Kd2
{[%clk 00:01:07]} {[%emt 00:00:01]} 103. Qd3+ {[%clk 00:00:52]} {[%emt
00:00:03]} Ke1 {[%clk 00:01:08]} {[%emt 00:00:03]} 104. Qc2 {[%clk 00:00:55]}
{[%emt 00:00:03]} Kf1 {[%clk 00:01:07]} {[%emt 00:00:04]} 105. Kd3 {[%clk
00:00:59]} {[%emt 00:00:02]} Kg1 {[%clk 00:01:11]} {[%emt 00:00:01]} 106. Ke3
{[%clk 00:01:01]} {[%emt 00:00:05]} Kh1 {[%clk 00:01:14]} {[%emt 00:00:01]} 107.
Kf3 {[%clk 00:01:04]} {[%emt 00:00:01]} Kg1 {[%clk 00:01:15]} {[%emt 00:00:04]}
108. Qg2# {[%emt 00:00:08]} 1-0

[Event "MCR rapid mládeže 2023 U16"]
[Site "Harachov, Czech Republic"]
[Date "2023.09.09"]
[Round "6.1"]
[White "Juhanak, Daniel"]
[Black "Krajicek, Matej"]
[Result "1-0"]
[TimeControl "20min+5s/move"]
[WhiteElo "1878"]
[BlackElo "1565"]

1. c4 {[%emt 00:00:06]} c5 {[%clk 00:20:08]} {[%emt 00:00:08]} 2. Nf3 {[%clk
00:20:39]} {[%emt 00:00:04]} g6 {[%clk 00:20:03]} {[%emt 00:00:10]} 3. Nc3
{[%clk 00:20:40]} {[%emt 00:00:05]} Bg7 {[%clk 00:20:05]} {[%emt 00:00:02]} 4.
e3 {[%clk 00:20:43]} {[%emt 00:00:03]} Nc6 {[%clk 00:20:01]} {[%emt 00:00:08]}
5. d4 {[%clk 00:20:46]} {[%emt 00:00:02]} cxd4 {[%clk 00:19:53]} {[%emt
00:00:13]} 6. exd4 {[%clk 00:20:50]} {[%emt 00:00:02]} d6 {[%clk 00:19:55]}
{[%emt 00:00:02]} 7. d5 {[%clk 00:20:09]} {[%emt 00:00:47]} Ne5 {[%clk
00:19:26]} {[%emt 00:00:33]} 8. Nxe5 {[%clk 00:19:50]} {[%emt 00:00:24]} Bxe5
{[%clk 00:19:25]} {[%emt 00:00:06]} 9. Bd3 {[%clk 00:19:05]} {[%emt 00:00:51]}
Bd7 {[%clk 00:18:29]} {[%emt 00:01:01]} 10. O-O {[%clk 00:18:42]} {[%emt
00:00:27]} Qb6 {[%clk 00:17:06]} {[%emt 00:01:28]} 11. Qe2 {[%clk 00:17:44]}
{[%emt 00:01:04]} Bf6 {[%clk 00:13:50]} {[%emt 00:03:21]} 12. Ne4 {[%clk
00:12:58]} {[%emt 00:04:51]} Bd4 {[%clk 00:09:26]} {[%emt 00:04:29]} 13. Bf4
{[%clk 00:11:25]} {[%emt 00:01:38]} Kf8 {[%clk 00:06:51]} {[%emt 00:02:40]} 14.
Rab1 {[%clk 00:09:06]} {[%emt 00:02:24]} Bf5 {[%clk 00:04:18]} {[%emt
00:02:37]} 15. b4 {[%clk 00:08:09]} {[%emt 00:01:02]} Bxe4 {[%clk 00:03:09]}
{[%emt 00:01:13]} 16. Qxe4 {[%clk 00:07:22]} {[%emt 00:00:53]} Kg7 {[%clk
00:02:05]} {[%emt 00:01:09]} 17. c5 {[%clk 00:06:51]} {[%emt 00:00:35]} dxc5
{[%clk 00:01:35]} {[%emt 00:00:35]} 18. bxc5 {[%clk 00:06:27]} {[%emt
00:00:29]} Qf6 {[%clk 00:00:09]} {[%emt 00:01:31]} 19. Rxb7 {[%clk 00:05:58]}
{[%emt 00:00:34]} h6 {[%clk 00:00:06]} {[%emt 00:00:08]} 20. c6 {[%clk
00:04:56]} {[%emt 00:01:07]} Qf5 {[%clk 00:00:00]} {[%emt 00:00:06]} 1-0

[Event "MCR rapid mládeže 2023 U16"]
[Site "Harachov, Czech Republic"]
[Date "2023.09.09"]
[Round "6.2"]
[White "Jasso, Matej"]
[Black "Roubal, Matyas"]
[Result "1/2-1/2"]
[TimeControl "20min+5s/move"]
[WhiteElo "1794"]
[BlackElo "1911"]

1. e4 {[%clk 00:20:06]} {[%emt 00:00:03]} c5 {[%clk 00:20:09]} {[%emt
00:00:02]} 2. Nf3 {[%clk 00:20:09]} {[%emt 00:00:02]} Nc6 {[%clk 00:20:13]}
{[%emt 00:00:01]} 3. d4 {[%clk 00:20:08]} {[%emt 00:00:06]} cxd4 {[%clk
00:20:16]} {[%emt 00:00:02]} 4. Nxd4 {[%clk 00:20:09]} {[%emt 00:00:04]} g6
{[%clk 00:20:19]} {[%emt 00:00:01]} 5. Be3 {[%clk 00:20:11]} {[%emt 00:00:04]}
Bg7 {[%clk 00:20:23]} {[%emt 00:00:02]} 6. Nc3 {[%clk 00:20:11]} {[%emt
00:00:04]} Nf6 {[%clk 00:20:25]} {[%emt 00:00:03]} 7. Bc4 {[%clk 00:20:14]}
{[%emt 00:00:02]} O-O {[%clk 00:20:27]} {[%emt 00:00:03]} 8. Bb3 {[%clk
00:20:14]} {[%emt 00:00:04]} Re8 {[%clk 00:20:31]} {[%emt 00:00:02]} 9. f3
{[%clk 00:19:23]} {[%emt 00:00:56]} d5 {[%clk 00:20:35]} {[%emt 00:00:01]} 10.
exd5 {[%clk 00:19:10]} {[%emt 00:00:19]} Nb4 {[%clk 00:20:39]} 11. Nde2 {[%clk
00:17:28]} {[%emt 00:01:46]} e6 {[%clk 00:20:42]} {[%emt 00:00:02]} 12. Qd2
{[%clk 00:15:46]} {[%emt 00:01:47]} Nbxd5 {[%clk 00:15:30]} {[%emt 00:05:17]}
13. O-O-O {[%clk 00:13:03]} {[%emt 00:02:48]} Bd7 {[%clk 00:13:27]} {[%emt
00:02:08]} 14. Nxd5 {[%clk 00:11:47]} {[%emt 00:01:21]} Nxd5 {[%clk 00:13:24]}
{[%emt 00:00:06]} 15. Bxd5 {[%clk 00:08:23]} {[%emt 00:03:30]} exd5 {[%clk
00:13:27]} {[%emt 00:00:02]} 16. Bd4 {[%clk 00:08:27]} {[%emt 00:00:01]} Bf8
{[%clk 00:06:12]} {[%emt 00:07:20]} 17. Nc3 {[%clk 00:06:35]} {[%emt 00:01:57]}
Bc6 {[%clk 00:05:56]} {[%emt 00:00:21]} 18. h4 {[%clk 00:06:30]} {[%emt
00:00:09]} b5 {[%clk 00:05:05]} {[%emt 00:00:57]} 19. h5 {[%clk 00:04:23]}
{[%emt 00:02:12]} b4 {[%clk 00:05:07]} {[%emt 00:00:03]} 20. Ne2 {[%clk
00:03:16]} {[%emt 00:01:12]} Qe7 {[%clk 00:04:38]} {[%emt 00:00:35]} 21. Rde1
{[%clk 00:02:55]} {[%emt 00:00:25]} Rac8 {[%clk 00:04:04]} {[%emt 00:00:39]} 22.
Nf4 {[%clk 00:02:39]} {[%emt 00:00:22]} Qg5 {[%clk 00:03:49]} {[%emt 00:00:20]}
23. hxg6 {[%clk 00:01:14]} {[%emt 00:01:30]} fxg6 {[%clk 00:03:53]} {[%emt
00:00:02]} 24. Ne6 {[%clk 00:00:25]} {[%emt 00:00:54]} Qxd2+ {[%clk 00:02:51]}
{[%emt 00:01:06]} 25. Kxd2 {[%clk 00:00:29]} h5 {[%clk 00:02:33]} {[%emt
00:00:23]} 26. Nxf8 {[%clk 00:00:21]} {[%emt 00:00:14]} Kxf8 {[%clk 00:02:37]}
{[%emt 00:00:02]} 27. Bxa7 {[%clk 00:00:24]} {[%emt 00:00:03]} Kf7 {[%clk
00:02:09]} {[%emt 00:00:32]} 28. Bc5 {[%clk 00:00:13]} {[%emt 00:00:15]} Ba4
{[%clk 00:01:44]} {[%emt 00:00:30]} 29. Rxe8 {[%clk 00:00:16]} {[%emt
00:00:01]} Kxe8 {[%clk 00:01:49]} 30. Re1+ {[%clk 00:00:19]} {[%emt 00:00:03]}
Kf7 {[%clk 00:01:53]} {[%emt 00:00:01]} 31. Re7+ {[%clk 00:00:16]} {[%emt
00:00:08]} Kf6 {[%clk 00:01:57]} 32. Ra7 {[%clk 00:00:20]} {[%emt 00:00:02]}
Bxc2 {[%clk 00:01:36]} {[%emt 00:00:26]} 33. Bxb4 {[%clk 00:00:13]} {[%emt
00:00:13]} Bf5 {[%clk 00:01:31]} {[%emt 00:00:09]} 34. Bc3+ {[%clk 00:00:09]}
{[%emt 00:00:09]} Kg5 {[%clk 00:01:35]} {[%emt 00:00:01]} 35. Ra4 {[%clk
00:00:11]} {[%emt 00:00:04]} Be6 {[%clk 00:01:19]} {[%emt 00:00:21]} 36. Rd4
{[%clk 00:00:12]} {[%emt 00:00:04]} h4 {[%clk 00:01:07]} {[%emt 00:00:17]} 37.
a4 {[%clk 00:00:16]} {[%emt 00:00:02]} Rf8 {[%clk 00:00:26]} {[%emt 00:00:45]}
38. Bb4 {[%clk 00:00:10]} {[%emt 00:00:11]} Rf7 {[%clk 00:00:29]} {[%emt
00:00:02]} 39. a5 {[%clk 00:00:14]} h3 {[%clk 00:00:31]} {[%emt 00:00:03]} 40.
gxh3 {[%clk 00:00:12]} {[%emt 00:00:07]} Rxf3 {[%clk 00:00:35]} {[%emt
00:00:01]} 41. Be7+ {[%clk 00:00:15]} {[%emt 00:00:02]} Kh6 {[%clk 00:00:18]}
{[%emt 00:00:22]} 42. h4 {[%clk 00:00:14]} {[%emt 00:00:06]} Rf7 {[%clk
00:00:20]} {[%emt 00:00:03]} 43. Bg5+ {[%clk 00:00:16]} {[%emt 00:00:03]} Kg7
{[%clk 00:00:23]} {[%emt 00:00:02]} 44. b4 {[%clk 00:00:20]} Ra7 {[%clk
00:00:23]} {[%emt 00:00:05]} 45. Kc3 {[%clk 00:00:19]} {[%emt 00:00:06]} Kf7
{[%clk 00:00:22]} {[%emt 00:00:05]} 46. Kb3 {[%clk 00:00:18]} {[%emt 00:00:06]}
Ke8 {[%clk 00:00:23]} {[%emt 00:00:04]} 47. Ka4 {[%clk 00:00:22]} {[%emt
00:00:02]} Kd7 {[%clk 00:00:27]} {[%emt 00:00:01]} 48. b5 {[%clk 00:00:26]} Kd6
{[%clk 00:00:27]} {[%emt 00:00:05]} 49. Kb4 {[%clk 00:00:24]} {[%emt 00:00:07]}
Bd7 {[%clk 00:00:26]} {[%emt 00:00:06]} 50. Bf4+ {[%clk 00:00:24]} {[%emt
00:00:05]} Ke6 {[%clk 00:00:28]} {[%emt 00:00:03]} 51. a6 {[%clk 00:00:26]}
{[%emt 00:00:03]} Ra8 {[%clk 00:00:20]} {[%emt 00:00:14]} 52. Ka5 {[%clk
00:00:19]} {[%emt 00:00:11]} Bc8 {[%clk 00:00:15]} {[%emt 00:00:10]} 53. Kb6
{[%clk 00:00:12]} {[%emt 00:00:12]} Bd7 {[%clk 00:00:16]} {[%emt 00:00:04]} 54.
Kb7 {[%clk 00:00:11]} {[%emt 00:00:06]} Rg8 {[%clk 00:00:20]} 55. a7 {[%clk
00:00:12]} {[%emt 00:00:04]} Bc8+ {[%clk 00:00:24]} 56. Kb6 {[%clk 00:00:14]}
{[%emt 00:00:03]} Bd7 {[%clk 00:00:28]} {[%emt 00:00:02]} 57. Ra4 {[%clk
00:00:14]} {[%emt 00:00:04]} Ra8 {[%clk 00:00:31]} {[%emt 00:00:02]} 58. Kb7
{[%clk 00:00:18]} Bxb5 {[%clk 00:00:30]} {[%emt 00:00:06]} 59. Kxa8 {[%clk
00:00:19]} {[%emt 00:00:04]} Bxa4 {[%clk 00:00:34]} {[%emt 00:00:01]} 60. Kb7
{[%clk 00:00:23]} Kd7 {[%clk 00:00:38]} {[%emt 00:00:01]} 61. a8=Q {[%clk
00:00:16]} {[%emt 00:00:13]} Bc6+ {[%clk 00:00:42]} 62. Ka7 {[%clk 00:00:20]}
Bxa8 {[%clk 00:00:46]} 63. Kxa8 {[%clk 00:00:24]} {[%emt 00:00:01]} Ke6 {[%clk
00:00:33]} {[%emt 00:00:18]} 64. Kb7 {[%clk 00:00:27]} {[%emt 00:00:01]} Kf5
{[%clk 00:00:30]} {[%emt 00:00:08]} 65. Bg5 {[%clk 00:00:30]} {[%emt 00:00:02]}
Kg4 {[%emt 00:00:21]} 1/2-1/2

[Event "MCR rapid mládeže 2023 U16"]
[Site "Harachov, Czech Republic"]
[Date "2023.09.09"]
[Round "6.3"]
[White "Andrle, Filip"]
[Black "Svadlenka, Dominik"]
[Result "1-0"]
[TimeControl "20min+5s/move"]
[WhiteElo "1649"]
[BlackElo "1588"]

1. e4 {[%clk 00:20:07]} {[%emt 00:00:02]} c6 {[%clk 00:20:09]} {[%emt
00:00:01]} 2. Nc3 {[%clk 00:20:04]} {[%emt 00:00:08]} d5 {[%clk 00:20:13]}
{[%emt 00:00:01]} 3. Nf3 {[%clk 00:20:07]} {[%emt 00:00:02]} dxe4 {[%clk
00:20:16]} {[%emt 00:00:02]} 4. Nxe4 {[%clk 00:20:03]} {[%emt 00:00:09]} Nf6
{[%clk 00:20:20]} {[%emt 00:00:02]} 5. Qe2 {[%clk 00:19:49]} {[%emt 00:00:19]}
Nxe4 {[%clk 00:20:22]} {[%emt 00:00:03]} 6. Qxe4 {[%clk 00:19:50]} {[%emt
00:00:03]} Nd7 {[%clk 00:20:25]} {[%emt 00:00:02]} 7. Bc4 {[%clk 00:19:48]}
{[%emt 00:00:06]} Nf6 {[%clk 00:20:28]} {[%emt 00:00:02]} 8. Ne5 {[%clk
00:19:51]} {[%emt 00:00:03]} e6 {[%clk 00:20:31]} {[%emt 00:00:02]} 9. Qe2
{[%clk 00:19:47]} {[%emt 00:00:09]} b5 {[%clk 00:20:29]} {[%emt 00:00:07]} 10.
Bb3 {[%clk 00:19:48]} {[%emt 00:00:04]} Qc7 {[%clk 00:20:11]} {[%emt 00:00:23]}
11. d4 {[%clk 00:19:34]} {[%emt 00:00:18]} a5 {[%clk 00:19:26]} {[%emt
00:00:51]} 12. c3 {[%clk 00:19:34]} {[%emt 00:00:05]} Bd6 {[%clk 00:19:16]}
{[%emt 00:00:15]} 13. Bf4 {[%clk 00:18:48]} {[%emt 00:00:50]} O-O {[%clk
00:19:05]} {[%emt 00:00:17]} 14. O-O {[%clk 00:18:12]} {[%emt 00:00:40]} Ba6
{[%clk 00:18:48]} {[%emt 00:00:22]} 15. Rfe1 {[%clk 00:16:49]} {[%emt
00:01:28]} a4 {[%clk 00:18:16]} {[%emt 00:00:39]} 16. Bc2 {[%clk 00:16:41]}
{[%emt 00:00:13]} h6 {[%clk 00:15:37]} {[%emt 00:02:43]} 17. Qf3 {[%clk
00:15:12]} {[%emt 00:01:34]} c5 {[%clk 00:15:09]} {[%emt 00:00:34]} 18. Bxh6
{[%clk 00:11:19]} {[%emt 00:03:58]} cxd4 {[%clk 00:13:45]} {[%emt 00:01:30]} 19.
Bxg7 {[%clk 00:08:53]} {[%emt 00:02:31]} Bxe5 {[%clk 00:07:07]} {[%emt
00:06:43]} 20. Rxe5 {[%clk 00:07:05]} {[%emt 00:01:52]} Nd7 {[%clk 00:04:18]}
{[%emt 00:02:55]} 21. Qg3 {[%clk 00:06:13]} {[%emt 00:00:57]} f5 {[%clk
00:03:32]} {[%emt 00:00:51]} 22. Bf6+ {[%clk 00:05:48]} {[%emt 00:00:30]} 1-0